[Event "*** Titled Tuesday Blitz"]
[Site "Chess.com"]
[Date "2018.05.01"]
[Round "2"]
[White "Arystanner23"]
[Black "MFBerna"]
[Result "1/2-1/2"]
[WhiteElo "2403"]
[BlackElo "2281"]
[TimeControl "180+2"]
[EndTime "13:23:29 PDT"]
[Termination "Game drawn - insufficient material"]

1. e4 {[%clk 0:03:01.9]} 1... c6 {[%clk 0:02:53.6]} 2. d4 {[%clk 0:03:01]} 2...
d5 {[%clk 0:02:55.5]} 3. Nd2 {[%clk 0:03:02.3]} 3... dxe4 {[%clk 0:02:52.4]} 4.
Nxe4 {[%clk 0:03:04.2]} 4... Nf6 {[%clk 0:02:51.3]} 5. Nxf6+ {[%clk 0:03:04.7]}
5... exf6 {[%clk 0:02:53.2]} 6. c3 {[%clk 0:03:05.6]} 6... Bd6 {[%clk
0:02:53.2]} 7. Bd3 {[%clk 0:03:06.9]} 7... O-O {[%clk 0:02:53.7]} 8. Ne2 {[%clk
0:03:08.2]} 8... Re8 {[%clk 0:02:54.7]} 9. Qc2 {[%clk 0:03:09.5]} 9... g6 {[%clk
0:02:55]} 10. h4 {[%clk 0:03:10.1]} 10... Qe7 {[%clk 0:02:47.8]} 11. h5 {[%clk
0:03:09.1]} 11... Nd7 {[%clk 0:02:42.6]} 12. Be3 {[%clk 0:03:05.6]} 12... Nf8
{[%clk 0:02:42.6]} 13. O-O-O {[%clk 0:03:06.3]} 13... Bg4 {[%clk 0:02:33.3]} 14.
hxg6 {[%clk 0:03:03.7]} 14... fxg6 {[%clk 0:02:31]} 15. Rde1 {[%clk 0:03:02.3]}
15... Qf7 {[%clk 0:02:26.5]} 16. Kb1 {[%clk 0:03:01.3]} 16... Be6 {[%clk
0:02:24.7]} 17. c4 {[%clk 0:02:57]} 17... b5 {[%clk 0:02:21.2]} 18. d5 {[%clk
0:02:41.3]} 18... cxd5 {[%clk 0:02:08]} 19. cxb5 {[%clk 0:02:42.3]} 19... d4
{[%clk 0:02:09.1]} 20. Nxd4 {[%clk 0:02:43.5]} 20... Bxa2+ {[%clk 0:02:09.5]}
21. Ka1 {[%clk 0:02:44.9]} 21... Be5 {[%clk 0:01:46.2]} 22. Qa4 {[%clk
0:02:38.6]} 22... Bd5 {[%clk 0:01:43.7]} 23. f4 {[%clk 0:02:22.6]} 23... Bc7
{[%clk 0:01:35.5]} 24. f5 {[%clk 0:02:21.4]} 24... g5 {[%clk 0:01:26.7]} 25. Ne6
{[%clk 0:02:19.2]} 25... Be5 {[%clk 0:01:15.4]} 26. Bxg5 {[%clk 0:02:12.5]}
26... Bxb2+ {[%clk 0:01:09.1]} 27. Kxb2 {[%clk 0:02:12]} 27... fxg5 {[%clk
0:01:08.8]} 28. Qd4 {[%clk 0:01:55.1]} 28... Bxe6 {[%clk 0:00:54.7]} 29. fxe6
{[%clk 0:01:54.2]} 29... Qg7 {[%clk 0:00:55.1]} 30. Qxg7+ {[%clk 0:01:52.5]}
30... Kxg7 {[%clk 0:00:57]} 31. e7 {[%clk 0:01:41.1]} 31... Ng6 {[%clk
0:00:55.1]} 32. Re6 {[%clk 0:01:30.1]} 32... Nf4 {[%clk 0:00:45.9]} 33. Rxh7+
{[%clk 0:00:49.8]} 33... Kg8 {[%clk 0:00:46.3]} 34. Reh6 {[%clk 0:00:27.5]}
34... Nxd3+ {[%clk 0:00:45.4]} 35. Kc3 {[%clk 0:00:28.7]} 35... Nf4 {[%clk
0:00:42.8]} 36. Rh8+ {[%clk 0:00:26.3]} 36... Kf7 {[%clk 0:00:38.2]} 37. R8h7+
{[%clk 0:00:26.9]} 37... Kg8 {[%clk 0:00:37.6]} 38. Kd4 {[%clk 0:00:25.6]} 38...
Ng6 {[%clk 0:00:28]} 39. Kd5 {[%clk 0:00:21.3]} 39... Rxe7 {[%clk 0:00:19.3]}
40. Rxe7 {[%clk 0:00:20.9]} 40... Nxe7+ {[%clk 0:00:21.2]} 41. Ke6 {[%clk
0:00:22.4]} 41... Kg7 {[%clk 0:00:18.6]} 42. Rh1 {[%clk 0:00:20.1]} 42... Ng6
{[%clk 0:00:19.2]} 43. Ra1 {[%clk 0:00:20.7]} 43... Nf4+ {[%clk 0:00:19.1]} 44.
Kf5 {[%clk 0:00:21.4]} 44... Nd5 {[%clk 0:00:15.5]} 45. Kxg5 {[%clk 0:00:21.8]}
45... Nc7 {[%clk 0:00:15.3]} 46. Ra5 {[%clk 0:00:21.2]} 46... Nd5 {[%clk
0:00:13.7]} 47. Kf5 {[%clk 0:00:21.5]} 47... Kf7 {[%clk 0:00:12.4]} 48. Ke5
{[%clk 0:00:22.7]} 48... Ne3 {[%clk 0:00:12.9]} 49. Kd4 {[%clk 0:00:21.4]} 49...
Nc2+ {[%clk 0:00:10.6]} 50. Kc3 {[%clk 0:00:22.1]} 50... Ne3 {[%clk 0:00:11.1]}
51. b6 {[%clk 0:00:23.4]} 51... Rc8+ {[%clk 0:00:08.8]} 52. Kd3 {[%clk
0:00:24.5]} 52... axb6 {[%clk 0:00:07.6]} 53. Ra7+ {[%clk 0:00:25.2]} 53... Ke6
{[%clk 0:00:08.3]} 54. Kxe3 {[%clk 0:00:26.4]} 54... Kd5 {[%clk 0:00:08.7]} 55.
g4 {[%clk 0:00:26.3]} 55... b5 {[%clk 0:00:09.2]} 56. g5 {[%clk 0:00:26.7]}
56... Rg8 {[%clk 0:00:09.6]} 57. Kf4 {[%clk 0:00:26.3]} 57... b4 {[%clk
0:00:10.8]} 58. Kf5 {[%clk 0:00:26.1]} 58... b3 {[%clk 0:00:11]} 59. Kf6 {[%clk
0:00:22.1]} 59... Rb8 {[%clk 0:00:07.8]} 60. Rd7+ {[%clk 0:00:21.2]} 60... Kc6
{[%clk 0:00:06.5]} 61. Rd1 {[%clk 0:00:22.2]} 61... b2 {[%clk 0:00:08.4]} 62.
Rb1 {[%clk 0:00:23.2]} 62... Kc5 {[%clk 0:00:10.3]} 63. g6 {[%clk 0:00:24.6]}
63... Kc4 {[%clk 0:00:11.5]} 64. g7 {[%clk 0:00:25.5]} 64... Kc3 {[%clk
0:00:12.7]} 65. Kf7 {[%clk 0:00:23.6]} 65... Rb7+ {[%clk 0:00:13.8]} 66. Kf6
{[%clk 0:00:22.8]} 66... Rxg7 {[%clk 0:00:14.7]} 67. Kxg7 {[%clk 0:00:23.3]}
67... Kc2 {[%clk 0:00:15.9]} 68. Rxb2+ {[%clk 0:00:24.8]} 68... Kxb2 {[%clk
0:00:17.8]} 1/2-1/2

[Event "*** Titled Tuesday Blitz"]
[Site "Chess.com"]
[Date "2018.05.01"]
[Round "2"]
[White "TheCount"]
[Black "Jospem"]
[Result "1/2-1/2"]
[WhiteElo "2553"]
[BlackElo "2692"]
[TimeControl "180+2"]
[EndTime "13:23:31 PDT"]
[Termination "Game drawn by agreement"]

1. b3 {[%clk 0:03:01.9]} 1... Nf6 {[%clk 0:02:59.9]} 2. Bb2 {[%clk 0:03:03.1]}
2... g6 {[%clk 0:03:01.8]} 3. g3 {[%clk 0:03:00.2]} 3... Bg7 {[%clk 0:03:02.5]}
4. Bg2 {[%clk 0:03:01.6]} 4... O-O {[%clk 0:03:04.1]} 5. Nf3 {[%clk 0:03:00.1]}
5... d5 {[%clk 0:03:02.7]} 6. O-O {[%clk 0:03:00.6]} 6... c5 {[%clk 0:03:01.9]}
7. c4 {[%clk 0:03:01.2]} 7... dxc4 {[%clk 0:03:01.1]} 8. bxc4 {[%clk 0:03:02]}
8... Nc6 {[%clk 0:03:02.7]} 9. d3 {[%clk 0:03:03.3]} 9... Qc7 {[%clk 0:03:00.6]}
10. Nc3 {[%clk 0:03:03.8]} 10... b6 {[%clk 0:02:53.7]} 11. Nb5 {[%clk
0:02:57.1]} 11... Qb7 {[%clk 0:02:29.4]} 12. Ne5 {[%clk 0:02:55.8]} 12... Bd7
{[%clk 0:02:30.8]} 13. Qa4 {[%clk 0:02:38.1]} 13... Be8 {[%clk 0:02:11.9]} 14.
Qc2 {[%clk 0:02:02.2]} 14... a6 {[%clk 0:02:06.4]} 15. Nc3 {[%clk 0:02:00.6]}
15... Rc8 {[%clk 0:02:01]} 16. a4 {[%clk 0:01:57.9]} 16... Qc7 {[%clk
0:01:29.1]} 17. Nxc6 {[%clk 0:01:53.1]} 17... Bxc6 {[%clk 0:01:31]} 18. Bxc6
{[%clk 0:01:38.8]} 18... Qxc6 {[%clk 0:01:31.3]} 19. a5 {[%clk 0:01:40.7]} 19...
b5 {[%clk 0:01:30.1]} 20. cxb5 {[%clk 0:01:36.3]} 20... axb5 {[%clk 0:01:32]}
21. Qb3 {[%clk 0:01:24.5]} 21... Rb8 {[%clk 0:01:15.6]} 22. a6 {[%clk
0:01:14.3]} 22... b4 {[%clk 0:01:14.7]} 23. Qa4 {[%clk 0:01:04.9]} 23... Qb6
{[%clk 0:01:04.9]} 24. Nd1 {[%clk 0:01:03.3]} 24... Nd5 {[%clk 0:00:58.2]} 25.
Bxg7 {[%clk 0:01:05.2]} 25... Kxg7 {[%clk 0:00:59.6]} 26. e4 {[%clk 0:01:06.6]}
26... Nc7 {[%clk 0:00:56.5]} 27. Ne3 {[%clk 0:01:02.4]} 27... Rfd8 {[%clk
0:00:56.5]} 28. Nc4 {[%clk 0:00:50.8]} 28... Qb5 {[%clk 0:00:55]} 29. a7 {[%clk
0:00:49.1]} 29... Ra8 {[%clk 0:00:55.9]} 30. Qa5 {[%clk 0:00:45.5]} 30... Rxd3
{[%clk 0:00:32.9]} 31. Nb6 {[%clk 0:00:42.8]} 31... Qxa5 {[%clk 0:00:31.1]} 32.
Rxa5 {[%clk 0:00:43.5]} 32... Rad8 {[%clk 0:00:32.8]} 33. Rxc5 {[%clk
0:00:24.9]} 33... Na8 {[%clk 0:00:28.7]} 34. Nd5 {[%clk 0:00:13.7]} 34... Ra3
{[%clk 0:00:24.8]} 35. Nxb4 {[%clk 0:00:13.2]} 35... Rxa7 {[%clk 0:00:22.1]} 36.
Rfc1 {[%clk 0:00:13.4]} 36... Rdd7 {[%clk 0:00:19.3]} 37. Nc6 {[%clk 0:00:11.8]}
37... Rab7 {[%clk 0:00:20.4]} 38. Ne5 {[%clk 0:00:11.9]} 38... Rd4 {[%clk
0:00:21.5]} 39. R5c4 {[%clk 0:00:11.9]} 39... Rxc4 {[%clk 0:00:21.9]} 40. Rxc4
{[%clk 0:00:13.1]} 40... Nc7 {[%clk 0:00:23.5]} 41. Nd3 {[%clk 0:00:11.8]} 41...
Rb1+ {[%clk 0:00:22.2]} 42. Kg2 {[%clk 0:00:12.2]} 42... Ne6 {[%clk 0:00:22.8]}
43. Nf4 {[%clk 0:00:13.2]} 43... Nxf4+ {[%clk 0:00:20.7]} 44. gxf4 {[%clk
0:00:14.8]} 44... Rb3 {[%clk 0:00:21.8]} 45. f3 {[%clk 0:00:15.6]} 45... e6
{[%clk 0:00:21.8]} 46. Kg3 {[%clk 0:00:16.6]} 46... h6 {[%clk 0:00:22.9]} 47.
Rc5 {[%clk 0:00:16.6]} 47... Rb1 {[%clk 0:00:23.9]} 48. Rc7 {[%clk 0:00:16.9]}
48... Kf6 {[%clk 0:00:23.7]} 49. Ra7 {[%clk 0:00:16.9]} 49... g5 {[%clk
0:00:22.6]} 50. fxg5+ {[%clk 0:00:17.1]} 50... hxg5 {[%clk 0:00:24.5]} 51. h4
{[%clk 0:00:17.4]} 51... gxh4+ {[%clk 0:00:25.4]} 52. Kxh4 {[%clk 0:00:18.9]}
52... Rg1 {[%clk 0:00:26.9]} 53. f4 {[%clk 0:00:19.3]} 53... Rg7 {[%clk
0:00:26.9]} 54. Kh5 {[%clk 0:00:17.1]} 54... Rg1 {[%clk 0:00:23]} 55. Kh4 {[%clk
0:00:17.5]} 55... Re1 {[%clk 0:00:22.9]} 56. e5+ {[%clk 0:00:14.9]} 56... Kg6
{[%clk 0:00:23.4]} 57. Kg4 {[%clk 0:00:15.3]} 57... Rg1+ {[%clk 0:00:24.5]} 58.
Kf3 {[%clk 0:00:15.9]} 58... Rb1 {[%clk 0:00:26.1]} 59. Ke4 {[%clk 0:00:16.1]}
59... Rb3 {[%clk 0:00:26.3]} 60. Kd4 {[%clk 0:00:15.9]} 60... Rb8 {[%clk
0:00:22.1]} 61. Ke4 {[%clk 0:00:16.2]} 61... Rc8 {[%clk 0:00:23.3]} 62. Kd4
{[%clk 0:00:16.7]} 62... Rf8 {[%clk 0:00:24]} 63. Ke4 {[%clk 0:00:17.8]} 63...
Rd8 {[%clk 0:00:25.4]} 64. Rb7 {[%clk 0:00:18.2]} 64... Rc8 {[%clk 0:00:23.9]}
65. Ra7 {[%clk 0:00:18.7]} 65... Rc4+ {[%clk 0:00:24.6]} 66. Ke3 {[%clk
0:00:19.9]} 66... Rb4 {[%clk 0:00:20.3]} 67. Kf3 {[%clk 0:00:20.7]} 67... f6
{[%clk 0:00:18.3]} 68. exf6 {[%clk 0:00:20.8]} 68... Kxf6 {[%clk 0:00:20.1]} 69.
Ra5 {[%clk 0:00:21.9]} 69... Rb3+ {[%clk 0:00:20.1]} 70. Ke4 {[%clk 0:00:22.4]}
1/2-1/2

[Event "*** Titled Tuesday Blitz"]
[Site "Chess.com"]
[Date "2018.05.01"]
[Round "2"]
[White "swayamsm"]
[Black "Fandorine"]
[Result "1-0"]
[WhiteElo "2524"]
[BlackElo "2713"]
[TimeControl "180+2"]
[EndTime "13:23:40 PDT"]
[Termination "swayamsm won by resignation"]

1. d4 {[%clk 0:03:01.9]} 1... Nf6 {[%clk 0:03:00.5]} 2. Nf3 {[%clk 0:02:56.4]}
2... g6 {[%clk 0:03:01]} 3. Bg5 {[%clk 0:02:56.3]} 3... Bg7 {[%clk 0:03:01.9]}
4. Nbd2 {[%clk 0:02:57.9]} 4... O-O {[%clk 0:03:03.2]} 5. c3 {[%clk 0:02:58]}
5... d6 {[%clk 0:03:04.5]} 6. e4 {[%clk 0:02:59.1]} 6... Nc6 {[%clk 0:03:05.1]}
7. Bc4 {[%clk 0:02:56.6]} 7... h6 {[%clk 0:03:04.6]} 8. Bh4 {[%clk 0:02:57.3]}
8... Nxe4 {[%clk 0:03:05.2]} 9. Nxe4 {[%clk 0:02:54.3]} 9... d5 {[%clk
0:03:04.7]} 10. Bd3 {[%clk 0:02:53.6]} 10... dxe4 {[%clk 0:03:00.8]} 11. Bxe4
{[%clk 0:02:55.4]} 11... f5 {[%clk 0:02:58.4]} 12. Bc2 {[%clk 0:02:16.2]} 12...
g5 {[%clk 0:02:50.5]} 13. Bxg5 {[%clk 0:02:08.2]} 13... hxg5 {[%clk 0:02:51.5]}
14. Nxg5 {[%clk 0:02:09.1]} 14... e6 {[%clk 0:02:50.6]} 15. Qh5 {[%clk
0:02:07.5]} 15... Rf6 {[%clk 0:02:51.4]} 16. Qh7+ {[%clk 0:01:27.6]} 16... Kf8
{[%clk 0:02:49]} 17. Qh5 {[%clk 0:01:28.3]} 17... Ke7 {[%clk 0:02:39.3]} 18.
O-O-O {[%clk 0:01:17.2]} 18... Qh8 {[%clk 0:02:32.2]} 19. Qe2 {[%clk 0:01:07.5]}
19... Qh4 {[%clk 0:02:29.6]} 20. Nf3 {[%clk 0:01:07.2]} 20... Qf4+ {[%clk
0:02:23.6]} 21. Kb1 {[%clk 0:01:08.4]} 21... Kf8 {[%clk 0:02:19.4]} 22. h4
{[%clk 0:01:01]} 22... Bd7 {[%clk 0:02:15.9]} 23. Rh3 {[%clk 0:00:48.3]} 23...
Rh6 {[%clk 0:02:09.8]} 24. Ng5 {[%clk 0:00:45.4]} 24... Re8 {[%clk 0:02:02.5]}
25. Re1 {[%clk 0:00:38.2]} 25... Bf6 {[%clk 0:01:46.5]} 26. g3 {[%clk
0:00:31.7]} 26... Qd6 {[%clk 0:01:41.5]} 27. Rhh1 {[%clk 0:00:31.5]} 27... b5
{[%clk 0:01:24.3]} 28. a3 {[%clk 0:00:21.6]} 28... a5 {[%clk 0:01:24]} 29. Qe3
{[%clk 0:00:20]} 29... Kg7 {[%clk 0:01:13.5]} 30. g4 {[%clk 0:00:17.4]} 30...
fxg4 {[%clk 0:00:58.7]} 31. Ne4 {[%clk 0:00:18.1]} 31... Qf8 {[%clk 0:00:54.3]}
32. Reg1 {[%clk 0:00:16.2]} 32... Kh8 {[%clk 0:00:49.4]} 33. Rxg4 {[%clk
0:00:16.9]} 33... e5 {[%clk 0:00:50.6]} 34. Nxf6 {[%clk 0:00:10.5]} 34... Qxf6
{[%clk 0:00:46.7]} 35. Rg5 {[%clk 0:00:06.7]} 35... exd4 {[%clk 0:00:45.8]} 36.
Qd2 {[%clk 0:00:07.4]} 36... Be6 {[%clk 0:00:28.5]} 37. Rxb5 {[%clk 0:00:06.4]}
37... dxc3 {[%clk 0:00:28.2]} 38. Qxc3 {[%clk 0:00:07.2]} 38... Qxc3 {[%clk
0:00:28.6]} 39. bxc3 {[%clk 0:00:09.1]} 39... Bc4 {[%clk 0:00:26.4]} 40. Rc5
{[%clk 0:00:08.1]} 40... Ba6 {[%clk 0:00:22.8]} 41. f4 {[%clk 0:00:07.8]} 41...
Rf6 {[%clk 0:00:22.5]} 42. Rh5+ {[%clk 0:00:05.9]} 42... Kg7 {[%clk 0:00:23.4]}
43. Rg1+ {[%clk 0:00:06.2]} 43... Kf7 {[%clk 0:00:21]} 44. Rh7+ {[%clk
0:00:06.9]} 44... Ke6 {[%clk 0:00:16.9]} 45. Re1+ {[%clk 0:00:05.7]} 45... Kd6
{[%clk 0:00:17.9]} 46. Rxe8 {[%clk 0:00:07.3]} 46... Rxf4 {[%clk 0:00:15.6]} 47.
Rh6+ {[%clk 0:00:07.3]} 47... Kc5 {[%clk 0:00:16.9]} 48. Re4 {[%clk 0:00:08.2]}
48... Rf1+ {[%clk 0:00:17.3]} 49. Kb2 {[%clk 0:00:09.4]} 49... Rf2 {[%clk
0:00:18.7]} 50. Re3 {[%clk 0:00:08.2]} 50... Bc4 {[%clk 0:00:16.1]} 51. Kc1
{[%clk 0:00:08.2]} 51... Rf1+ {[%clk 0:00:16.5]} 52. Kd2 {[%clk 0:00:09.3]}
52... Rf2+ {[%clk 0:00:17.9]} 53. Kd1 {[%clk 0:00:10.2]} 53... Rf1+ {[%clk
0:00:11.2]} 54. Re1 {[%clk 0:00:11.3]} 54... Rf2 {[%clk 0:00:12.5]} 55. Ba4
{[%clk 0:00:12.2]} 55... Nd8 {[%clk 0:00:05.7]} 56. Re5+ {[%clk 0:00:13]} 56...
Bd5 {[%clk 0:00:07.1]} 57. Bb3 {[%clk 0:00:12.1]} 57... c6 {[%clk 0:00:08]} 58.
c4 {[%clk 0:00:13.4]} 58... Nf7 {[%clk 0:00:07.4]} 59. Rxd5+ {[%clk 0:00:12.4]}
59... cxd5 {[%clk 0:00:07.8]} 60. Rh5 {[%clk 0:00:14.3]} 60... Kd4 {[%clk
0:00:08.6]} 61. Rxd5+ {[%clk 0:00:15.8]} 61... Kc3 {[%clk 0:00:10]} 62. Ba4
{[%clk 0:00:17.3]} 62... Kxc4 {[%clk 0:00:06.1]} 63. Rxa5 {[%clk 0:00:17.5]}
63... Nd6 {[%clk 0:00:07.2]} 64. Ke1 {[%clk 0:00:17.4]} 64... Rh2 {[%clk
0:00:07.7]} 65. Bc6 {[%clk 0:00:17.8]} 65... Nf5 {[%clk 0:00:05.2]} 66. Rxf5
{[%clk 0:00:18.4]} 1-0

[Event "*** Titled Tuesday Blitz"]
[Site "Chess.com"]
[Date "2018.05.01"]
[Round "2"]
[White "chessking2151"]
[Black "PchelkinVK"]
[Result "1-0"]
[WhiteElo "2429"]
[BlackElo "2427"]
[TimeControl "180+2"]
[EndTime "13:23:40 PDT"]
[Termination "chessking2151 won by checkmate"]

1. Nf3 {[%clk 0:03:01]} 1... Nc6 {[%clk 0:02:59]} 2. d4 {[%clk 0:03:00.6]} 2...
d5 {[%clk 0:02:59.4]} 3. c4 {[%clk 0:03:01.6]} 3... e5 {[%clk 0:02:53.2]} 4.
dxe5 {[%clk 0:02:52.8]} 4... d4 {[%clk 0:02:54.1]} 5. g3 {[%clk 0:02:47.1]} 5...
Nge7 {[%clk 0:02:31.9]} 6. Bg2 {[%clk 0:02:22.4]} 6... Ng6 {[%clk 0:02:32.4]} 7.
O-O {[%clk 0:02:22.9]} 7... Bf5 {[%clk 0:02:21.4]} 8. Qb3 {[%clk 0:02:07.9]}
8... Nb4 {[%clk 0:02:08.4]} 9. Na3 {[%clk 0:01:59.6]} 9... c6 {[%clk 0:01:58.3]}
10. Rd1 {[%clk 0:01:46.6]} 10... Bc5 {[%clk 0:01:58]} 11. Bg5 {[%clk 0:01:43.8]}
11... Qb6 {[%clk 0:01:51]} 12. Nh4 {[%clk 0:01:14.5]} 12... Nxh4 {[%clk
0:01:49.7]} 13. Bxh4 {[%clk 0:01:16]} 13... d3 {[%clk 0:01:40.1]} 14. exd3
{[%clk 0:01:08.3]} 14... Bxf2+ {[%clk 0:01:40.3]} 15. Kh1 {[%clk 0:01:07.6]}
15... a5 {[%clk 0:01:39.5]} 16. c5 {[%clk 0:01:02.4]} 16... Qxc5 {[%clk
0:01:18.9]} 17. Rac1 {[%clk 0:00:53.2]} 17... Qa7 {[%clk 0:01:08.5]} 18. Nc4
{[%clk 0:00:50.2]} 18... O-O {[%clk 0:01:06.7]} 19. a3 {[%clk 0:00:39]} 19...
Nd5 {[%clk 0:01:07.2]} 20. Nd6 {[%clk 0:00:34.9]} 20... Bg4 {[%clk 0:01:02.7]}
21. Rf1 {[%clk 0:00:30.4]} 21... Be3 {[%clk 0:00:44.1]} 22. Rce1 {[%clk
0:00:19.1]} 22... b5 {[%clk 0:00:42.9]} 23. Nxb5 {[%clk 0:00:17.4]} 23... Qb6
{[%clk 0:00:39.6]} 24. Qc4 {[%clk 0:00:10.4]} 24... Be6 {[%clk 0:00:31.1]} 25.
Nd6 {[%clk 0:00:11.6]} 25... Bd2 {[%clk 0:00:20.6]} 26. Qe4 {[%clk 0:00:08]}
26... Bxe1 {[%clk 0:00:19.5]} 27. Rxe1 {[%clk 0:00:09.9]} 27... Qxb2 {[%clk
0:00:19.4]} 28. Nc4 {[%clk 0:00:10]} 28... Qc3 {[%clk 0:00:19.3]} 29. a4 {[%clk
0:00:10.5]} 29... Nb4 {[%clk 0:00:19.5]} 30. Rd1 {[%clk 0:00:11.1]} 30... Bd5
{[%clk 0:00:19.6]} 31. Qe2 {[%clk 0:00:11.8]} 31... Rad8 {[%clk 0:00:19.1]} 32.
Bxd5 {[%clk 0:00:12.2]} 32... Rxd5 {[%clk 0:00:19.1]} 33. Be7 {[%clk 0:00:13]}
33... Re8 {[%clk 0:00:19.4]} 34. Bd6 {[%clk 0:00:09.4]} 34... Qd4 {[%clk
0:00:14.7]} 35. Kg2 {[%clk 0:00:05.5]} 35... Na6 {[%clk 0:00:13.2]} 36. Qe3
{[%clk 0:00:05.5]} 36... Qxe3 {[%clk 0:00:12.4]} 37. Nxe3 {[%clk 0:00:07.4]}
37... Rd4 {[%clk 0:00:13.9]} 38. Nc4 {[%clk 0:00:05.8]} 38... f6 {[%clk
0:00:13.5]} 39. exf6 {[%clk 0:00:05.6]} 39... gxf6 {[%clk 0:00:15.4]} 40. Bf4
{[%clk 0:00:06.5]} 40... Nb4 {[%clk 0:00:15.6]} 41. Nxa5 {[%clk 0:00:07.1]}
41... Rxd3 {[%clk 0:00:16.3]} 42. Rxd3 {[%clk 0:00:07.7]} 42... Nxd3 {[%clk
0:00:18.2]} 43. Nxc6 {[%clk 0:00:09.3]} 43... Nxf4+ {[%clk 0:00:18.6]} 44. gxf4
{[%clk 0:00:11.2]} 44... Re4 {[%clk 0:00:19.7]} 45. a5 {[%clk 0:00:11.6]} 45...
Rxf4 {[%clk 0:00:21.1]} 46. a6 {[%clk 0:00:13]} 46... Ra4 {[%clk 0:00:22]} 47.
a7 {[%clk 0:00:14.5]} 47... Kf7 {[%clk 0:00:22.6]} 48. Kf3 {[%clk 0:00:16]}
48... Ke6 {[%clk 0:00:22.9]} 49. Ke3 {[%clk 0:00:16.7]} 49... Kd6 {[%clk
0:00:19.8]} 50. Nd4 {[%clk 0:00:17.6]} 50... Rxa7 {[%clk 0:00:20]} 51. Nb5+
{[%clk 0:00:17.9]} 51... Ke5 {[%clk 0:00:17.8]} 52. Nxa7 {[%clk 0:00:19.8]}
52... Kf5 {[%clk 0:00:19.1]} 53. Kf3 {[%clk 0:00:20.4]} 53... Kg5 {[%clk
0:00:19.6]} 54. Nc6 {[%clk 0:00:20.8]} 54... Kh4 {[%clk 0:00:20.4]} 55. Kg2
{[%clk 0:00:21.9]} 55... Kg4 {[%clk 0:00:21.6]} 56. Nd4 {[%clk 0:00:22.3]} 56...
f5 {[%clk 0:00:22.6]} 57. Nf3 {[%clk 0:00:22.9]} 57... h6 {[%clk 0:00:23]} 58.
h3+ {[%clk 0:00:23.3]} 58... Kf4 {[%clk 0:00:24.2]} 59. Kf2 {[%clk 0:00:24.8]}
59... h5 {[%clk 0:00:24]} 60. Ng1 {[%clk 0:00:25.8]} 60... Ke4 {[%clk
0:00:21.9]} 61. Ne2 {[%clk 0:00:20.6]} 61... h4 {[%clk 0:00:21.7]} 62. Ng1
{[%clk 0:00:21.3]} 62... Kf4 {[%clk 0:00:21.4]} 63. Nf3 {[%clk 0:00:22.4]} 63...
Ke4 {[%clk 0:00:19]} 64. Nxh4 {[%clk 0:00:24.3]} 64... f4 {[%clk 0:00:17.2]} 65.
Nf3 {[%clk 0:00:24.6]} 65... Kf5 {[%clk 0:00:18]} 66. Ke2 {[%clk 0:00:26]} 66...
Kg6 {[%clk 0:00:18.7]} 67. Kd3 {[%clk 0:00:27]} 67... Kf5 {[%clk 0:00:20]} 68.
Kd4 {[%clk 0:00:28.2]} 68... Kg6 {[%clk 0:00:19.1]} 69. Ke4 {[%clk 0:00:29.2]}
69... Kh5 {[%clk 0:00:21]} 70. Kxf4 {[%clk 0:00:30.7]} 70... Kg6 {[%clk
0:00:22.9]} 71. Kg3 {[%clk 0:00:32.3]} 71... Kh5 {[%clk 0:00:24.8]} 72. Nh2
{[%clk 0:00:33.7]} 72... Kg6 {[%clk 0:00:26.2]} 73. Ng4 {[%clk 0:00:35.6]} 73...
Kh5 {[%clk 0:00:27.8]} 74. Nf2 {[%clk 0:00:35.5]} 74... Kg5 {[%clk 0:00:29.7]}
75. Nd3 {[%clk 0:00:37.4]} 75... Kh5 {[%clk 0:00:31.5]} 76. Ne1 {[%clk
0:00:39.3]} 76... Kg5 {[%clk 0:00:32.9]} 77. Ng2 {[%clk 0:00:41.2]} 77... Kh5
{[%clk 0:00:34.8]} 78. h4 {[%clk 0:00:42.8]} 78... Kg6 {[%clk 0:00:35.2]} 79.
Kh3 {[%clk 0:00:44.7]} 79... Kh5 {[%clk 0:00:37.1]} 80. Kg3 {[%clk 0:00:46.1]}
80... Kh6 {[%clk 0:00:38.8]} 81. Kg4 {[%clk 0:00:47.7]} 81... Kg6 {[%clk
0:00:39.4]} 82. Nf4+ {[%clk 0:00:49.2]} 82... Kh6 {[%clk 0:00:40.8]} 83. h5
{[%clk 0:00:50.7]} 83... Kh7 {[%clk 0:00:42.1]} 84. Kg5 {[%clk 0:00:52.2]} 84...
Kg7 {[%clk 0:00:43.4]} 85. h6+ {[%clk 0:00:53.4]} 85... Kh7 {[%clk 0:00:44.6]}
86. Kh5 {[%clk 0:00:54.9]} 86... Kh8 {[%clk 0:00:43.3]} 87. Kg6 {[%clk
0:00:55.7]} 87... Kg8 {[%clk 0:00:44.6]} 88. Nh3 {[%clk 0:00:57.3]} 88... Kh8
{[%clk 0:00:45.8]} 89. Ng5 {[%clk 0:00:57.8]} 89... Kg8 {[%clk 0:00:46.7]} 90.
h7+ {[%clk 0:00:58.4]} 90... Kh8 {[%clk 0:00:47.2]} 91. Nf7# {[%clk 0:00:59.2]}
1-0